bitfinex-derivatives/quotes_BNBF0:USTF0_20250417
["timestamp","ask_amount","ask_price","bid_price","bid_amount"]
[1744927708770,0.29769671,591.69,590.0,0.31089282]
[1744927708966,0.29769671,591.69,590.02,0.33897156]
[1744927709165,0.29769671,591.69,590.03,0.31089282]
[1744927709367,0.29769671,591.69,590.05,0.33895432]
[1744927709572,0.29769671,591.69,590.06,0.31089282]
[1744927709868,0.29769671,591.69,590.08,0.33893709]
[1744927710074,0.29769671,591.69,590.09,0.31089282]
[1744927710273,0.29769671,591.69,590.11,0.33891986]
[1744927710474,0.29769671,591.69,590.12,0.31089282]
[1744927710669,0.29769671,591.69,590.14,0.33890263]
[1744927710872,0.29769671,591.69,590.15,0.31089282]
[1744927711084,0.29769671,591.69,590.17,0.3388854]
[1744927711274,0.33800912,591.7,590.18,0.31089282]
[1744927711472,0.33800912,591.7,590.2,0.33886818]
[1744927711670,0.29773823,591.69,590.21,0.31089282]
[1744927711876,0.29773823,591.69,590.23,0.33885095]
[1744927712068,0.29773823,591.69,590.24,0.31089282]
[1744927712268,0.29773823,591.69,590.26,0.33883373]
[1744927712477,0.29773823,591.69,590.27,0.31089282]
[1744927712776,0.29773823,591.69,590.29,0.33881651]
[1744927712976,0.29773823,591.69,590.3,0.31089282]
[1744927713173,0.29773823,591.69,590.32,0.33879929]
[1744927713376,0.29773823,591.69,590.33,0.31089282]
[1744927713568,0.29773823,591.69,590.35,0.33878207]
[1744927713870,0.29773823,591.69,590.36,0.31089282]
[1744927714070,0.29773823,591.69,590.38,0.33876486]
[1744927714278,0.29773823,591.69,590.39,0.31089282]
[1744927714473,0.2977557,591.68,590.41,0.33874764]
[1744927714677,0.2977557,591.69,590.42,0.31083604]
[1744927714876,0.33800912,591.7,590.44,0.33873043]
[1744927715072,0.33800912,591.7,590.45,0.31083604]
[1744927715270,0.33800912,591.7,590.46,0.33871896]
[1744927715471,0.29775655,591.69,590.47,0.31083604]
[1744927716078,0.33800912,591.7,590.48,0.33870749]
[1744927716280,0.33800912,591.7,590.49,0.31083165]
[1744927716281,0.29775654,591.69,590.49,0.31083165]
[1744927716480,0.33800912,591.7,590.5,0.33869602]
[1744927716681,0.33800912,591.7,590.51,0.31083165]
[1744927716882,0.33800912,591.7,590.52,0.33868454]
[1744927720986,0.33800912,591.7,590.53,0.31082728]
[1744927721186,0.33800912,591.7,590.54,0.33867307]
[1744927727092,0.33800912,591.7,590.55,0.3107979]
[1744927727690,0.33800912,591.7,590.54,0.33867307]
[1744927727894,1.05600912,591.7,590.55,0.31079966]
[1744927728087,1.05600912,591.7,590.56,0.3386616]
[1744927728287,1.05600912,591.7,590.57,0.31079966]
[1744927728595,1.05600912,591.7,590.58,0.33865014]
[1744927728888,1.05600912,591.7,590.59,0.31079966]
[1744927729095,1.05600912,591.7,590.6,0.33863867]
[1744927729293,1.05600912,591.7,590.61,0.31079966]
[1744927729595,1.05600912,591.7,590.62,0.3386272]
[1744927730194,1.05600912,591.7,590.63,0.59]
[1744927730393,1.05600912,591.7,590.64,0.33861573]
[1744927735395,1.05600912,591.7,590.65,0.31076492]
[1744927735594,1.05600912,591.7,590.66,0.33860427]
[1744927735792,1.05600912,591.7,590.67,0.31076492]
[1744927736095,1.05600912,591.7,590.68,0.3385928]
[1744927736395,1.05600912,591.7,590.68,0.5415928]
[1744927736696,1.05600912,591.7,590.68,1.2655928]
[1744927736896,1.05600912,591.7,590.68,1.7595928]
[1744927738893,0.718,591.7,590.69,0.31075611]
[1744927739094,0.718,591.7,590.7,0.33858134]
[1744927739292,0.718,591.7,590.71,0.31075611]
[1744927739495,0.718,591.7,590.72,0.33856988]
[1744927739698,0.718,591.7,590.73,0.31075611]
[1744927739898,0.718,591.7,590.74,0.33855841]
[1744927740098,0.718,591.7,590.75,0.31075611]
[1744927740901,0.718,591.7,590.76,0.33854695]
[1744927741092,0.718,591.7,590.77,0.31075611]
[1744927741295,0.718,591.7,590.78,0.33853549]
[1744927742599,0.718,591.7,590.79,0.31072461]
[1744927742803,0.718,591.7,590.8,0.33852403]
[1744927744599,0.718,591.7,590.81,0.31072162]
[1744927744804,0.718,591.7,590.82,0.33851257]
[1744927745498,0.718,591.7,590.83,0.31072235]
[1744927745697,0.718,591.7,590.84,0.33850111]
[1744927745899,0.718,591.7,590.85,0.31072235]
[1744927746503,0.718,591.7,590.85,0.64921773]
[1744927746701,0.718,591.7,590.85,0.33849538]
[1744927747099,0.718,591.7,590.86,0.31072235]
[1744927750498,0.718,591.7,590.87,0.3107237]
[1744927750804,0.718,591.7,590.88,0.3107237]
[1744927750997,0.718,591.7,590.86,0.3107237]
[1744927751200,0.718,591.7,590.87,1.0307237]
[1744927751401,0.718,591.7,590.88,0.3107237]
[1744927752905,0.718,591.7,590.89,0.588]
[1744927753105,0.718,591.7,590.9,0.3107237]
[1744927753808,0.718,591.7,590.89,0.588]
[1744927754004,0.718,591.7,590.9,0.31072162]
[1744927755405,0.718,591.7,590.89,0.588]
[1744927755606,0.718,591.7,590.9,0.87972191]
[1744927755907,0.718,591.7,590.91,0.31072191]
[1744927756306,0.718,591.7,590.9,0.569]
[1744927756709,0.718,591.7,590.9,1.352]
[1744927761608,0.718,591.7,590.91,0.31072189]
[1744927762009,0.718,591.7,590.91,0.62144378]
[1744927762210,0.718,591.7,590.92,0.31072189]
[1744927763110,0.718,591.7,590.91,0.31072189]
[1744927763312,0.718,591.7,590.92,0.31071537]
[1744927765512,0.718,591.7,590.91,0.31072189]
[1744927766817,0.718,591.7,590.91,0.46472189]
[1744927767614,0.718,591.7,590.91,0.66772189]
[1744927769018,0.718,591.7,590.91,1.40472189]
[1744927769823,0.718,591.7,590.92,0.33845529]
[1744927777828,0.718,591.7,590.92,1.01945529]
[1744927778429,0.718,591.7,590.92,1.84045529]
[1744927786740,0.718,591.7,590.93,0.3106184]
[1744927787039,0.718,591.7,590.94,0.33844383]
[1744927787339,0.718,591.7,590.95,0.3106184]
[1744927787640,0.718,591.7,590.94,0.33844383]
[1744927787839,0.718,591.7,590.95,0.31061987]
[1744927788138,0.718,591.7,590.96,0.33843238]
[1744927788341,0.718,591.7,590.97,0.31061987]
[1744927788742,0.718,591.7,590.98,0.33842092]
[1744927792046,0.718,591.7,590.99,0.31061945]
[1744927792247,0.718,591.7,591.0,0.33840947]
[1744927794148,0.718,591.7,591.01,0.154]
[1744927794346,0.718,591.7,591.02,0.33839802]
[1744927794544,0.718,591.7,591.02,0.54139802]
[1744927794849,0.718,591.7,591.03,0.31061834]
[1744927797652,0.718,591.7,591.03,0.89861834]
[1744927797855,0.718,591.7,591.04,0.31061834]
[1744927799154,0.718,591.7,591.03,0.588]
[1744927799452,0.718,591.7,591.03,0.92639229]
[1744927802653,0.718,591.7,591.03,1.62239229]
[1744927803855,0.718,591.7,591.03,2.42939229]
[1744927806861,0.718,591.7,591.03,3.12839229]
[1744927807562,0.718,591.7,591.04,0.31061863]
[1744927811359,0.718,591.7,591.04,1.10561863]
[1744927811559,0.718,591.7,591.05,0.31061863]
[1744927811758,0.718,591.7,591.04,0.795]
[1744927811963,0.718,591.7,591.05,0.31062093]
[1744927813566,0.718,591.7,591.06,0.31061892]
[1744927813758,0.718,591.7,591.05,0.31061892]
[1744927816558,0.718,591.7,591.05,0.46461892]
[1744927816760,0.718,591.7,591.05,0.154]
[1744927816963,0.718,591.7,591.06,0.31061921]
[1744927818865,0.718,591.7,591.05,0.44823328]
[1744927819666,0.718,591.7,591.05,0.65123328]
[1744927824065,0.718,591.7,591.05,0.357]
[1744927825670,0.718,591.7,591.05,1.138]
[1744927826974,0.718,591.7,591.05,1.86]
[1744927835074,0.718,591.7,591.05,2.643]
[1744927849378,0.718,591.7,591.05,3.38]
[1744927852990,0.718,591.7,591.06,0.31062344]
[1744927854389,0.718,591.7,591.07,0.31061797]
[1744927854588,0.718,591.7,591.06,0.31061797]
[1744927854788,0.718,591.7,591.05,1.52]
[1744927855089,0.718,591.7,591.06,0.31061919]
[1744927855690,0.718,591.7,591.06,0.46461919]
[1744927855891,0.718,591.7,591.07,0.31061919]
[1744927856393,0.718,591.7,591.06,0.154]
[1744927856692,0.718,591.7,591.07,0.33836939]
[1744927861900,0.718,591.7,591.08,0.578]
[1744927862200,0.718,591.7,591.09,1.01235794]
[1744927862396,0.718,591.7,591.1,0.33835222]
[1744927868909,0.718,591.7,591.11,0.31060755]
[1744927870401,0.718,591.7,591.12,0.33834077]
[1744927870706,0.718,591.7,591.13,0.31058742]
[1744927870905,0.718,591.7,591.14,0.33832932]
[1744927871107,0.718,591.7,591.15,0.31058742]
[1744927871301,0.718,591.7,591.15,0.64891102]
[1744927871504,0.718,591.7,591.16,0.31058742]
[1744927872007,0.718,591.7,591.15,0.3383236]
[1744927872205,0.718,591.7,591.16,0.31057984]
[1744927872808,0.718,591.7,591.16,0.51357984]
[1744927873009,0.718,591.7,591.16,0.957]
[1744927874311,0.718,591.7,591.16,1.111]
[1744927878110,0.718,591.7,591.16,1.836]
[1744927883913,0.718,591.7,591.16,2.533]
[1744927886214,0.718,591.7,591.17,0.31058296]
[1744927887020,0.718,591.7,591.17,1.09658296]
[1744927887316,0.718,591.7,591.18,0.31058296]
[1744927889222,0.718,591.7,591.17,0.786]
[1744927889414,0.718,591.7,591.18,0.31058325]
[1744927890223,0.718,591.7,591.18,0.46458325]
[1744927890418,0.718,591.7,591.19,0.31058325]
[1744927892423,0.718,591.7,591.18,0.154]
[1744927892623,0.718,591.7,591.19,0.31058321]
[1744927894026,0.718,591.7,591.18,0.154]
[1744927894227,0.718,591.7,591.19,0.31058321]
[1744927894828,0.718,591.7,591.2,0.682]
[1744927895022,0.718,591.7,591.21,0.31058321]
[1744927895527,0.718,591.7,591.2,0.682]
[1744927895728,0.718,591.7,591.21,0.31057702]
[1744927896027,0.718,591.7,591.22,0.203]
[1744927901730,0.718,591.7,591.23,0.767]
[1744927902228,0.718,591.7,591.23,1.544]
[1744927904129,0.718,591.7,591.23,2.329]
[1744927920446,0.718,591.7,591.24,0.597]
[1744927924854,0.718,591.7,591.24,0.8]
[1744927973579,0.718,591.7,591.24,1.41]
[1744927994192,0.718,591.7,591.24,2.165]
[1744927994692,0.718,591.7,591.24,3.043]
[1744928000596,0.718,591.7,591.24,3.197]
[1744928007402,0.29773632,591.69,591.24,3.197]
[1744928007603,0.29773632,591.69,591.24,1.032]
[1744928009899,0.718,591.7,591.24,1.032]
[1744928010301,0.718,591.7,591.24,1.767]
[1744928010697,0.718,591.7,591.24,1.97]
[1744928011102,0.718,591.7,591.24,2.613]
[1744928043540,0.718,591.7,591.24,3.551]
[1744928082869,0.718,591.7,591.24,4.319]
[1744928166436,0.29766255,591.69,591.24,4.319]
[1744928166839,0.29766255,591.69,590.31,1.0737204]
[1744928167033,0.718,591.7,590.32,0.31074961]
[1744928167240,1.29202224,592.28,590.32,0.31074961]
[1744928167532,0.29439383,592.17,590.33,0.63318738]
[1744928167738,0.29765413,592.16,590.35,0.33878207]
[1744928168038,0.63540638,592.15,590.36,0.31074961]
[1744928168231,0.63541209,592.14,590.38,0.33876486]
[1744928168434,0.63541779,592.13,590.39,0.31074961]
[1744928168637,0.33776937,592.12,590.41,0.33874764]
[1744928168838,0.29765413,592.11,590.42,0.31074961]
[1744928169033,0.33778078,592.1,590.44,0.33873043]
[1744928169237,0.29765107,592.09,590.45,1.24173677]
[1744928169435,0.33779219,592.08,590.47,0.33871322]
[1744928169635,0.29765107,592.07,590.48,0.31073677]
[1744928169834,0.29765107,592.07,590.48,1.04473677]
[1744928170037,0.29765107,592.07,590.5,0.33869602]
[1744928170339,0.29765107,592.07,590.51,0.31073677]
[1744928170535,0.29765107,592.07,590.53,0.33867881]
[1744928170733,0.29765107,592.07,590.54,0.31073677]
[1744928170940,0.29765107,592.07,590.56,0.3386616]
[1744928171142,1.05465107,592.07,590.57,0.31073677]
[1744928171341,0.29765107,592.06,590.59,0.3386444]
[1744928171640,0.29765107,592.06,590.6,0.31073677]
[1744928171841,0.29765107,592.06,590.62,0.3386272]
[1744928172141,0.29765107,592.06,590.63,0.31073677]
[1744928172541,0.29770999,592.05,590.64,0.31067855]
[1744928172742,0.29770999,592.06,590.63,0.31067855]
[1744928172942,0.29770999,592.05,590.65,0.33861]
[1744928173243,0.29770999,592.04,590.66,0.31067855]
[1744928173438,0.29770999,592.03,590.68,0.3385928]
[1744928173637,0.29770999,592.06,590.69,0.31067855]
[1744928173841,0.29770999,592.05,590.71,0.33857561]
[1744928174040,0.757,592.07,590.71,0.33857561]
[1744928174237,0.29770935,592.06,590.72,0.31068119]
[1744928174542,0.29770935,592.06,590.74,0.33855841]
[1744928174741,0.29770935,592.06,590.75,0.31068119]
[1744928174942,0.29770935,592.06,590.76,0.33854695]
[1744928175136,0.29770935,592.06,590.77,0.31068119]
[1744928175340,0.29770935,592.06,590.78,0.33853549]
[1744928175643,0.757,592.07,590.78,0.33853549]
[1744928175843,0.757,592.07,590.79,0.31068842]
[1744928175844,0.29769986,592.06,590.79,0.31068842]
[1744928176039,0.29769986,592.06,590.8,0.33852403]
[1744928176240,0.29769986,592.06,590.81,0.31068842]
[1744928176440,0.29769986,592.06,590.82,0.33851257]
[1744928176741,0.29769986,592.06,590.83,0.31068842]
[1744928176946,0.29769986,592.06,590.84,0.33850111]
[1744928178947,0.757,592.07,590.84,0.33850111]
[1744928179147,0.29768446,592.06,590.84,0.33850111]
[1744928180648,0.29768446,592.06,590.85,0.31069643]
[1744928180947,0.29768446,592.06,590.85,0.64919181]
[1744928181146,0.29768446,592.06,590.85,0.33849538]
[1744928181342,0.29768446,592.06,590.86,0.31069761]
[1744928181748,0.29768446,592.06,590.85,0.33849538]
[1744928182048,0.29768446,592.06,590.86,0.31069792]
[1744928182247,0.757,592.07,590.85,0.33849538]
[1744928182547,0.29768532,592.06,590.86,0.31069751]
[1744928183043,0.29768532,592.06,590.85,0.33849538]
[1744928183848,0.757,592.07,590.85,0.33849538]
[1744928184048,0.2976836,592.06,590.85,0.33849538]
[1744928186853,0.2976836,592.06,590.86,0.31070103]
[1744928187152,0.757,592.07,590.85,0.33849538]
[1744928187357,0.29768115,592.06,590.86,0.31070148]
[1744928188151,0.757,592.07,590.85,0.33849538]
[1744928188450,0.63545745,592.06,590.85,0.33849538]
[1744928188647,0.29765385,592.05,590.85,0.33849538]
[1744928190353,0.33781501,592.04,590.85,0.33849538]
[1744928190651,0.29765385,592.03,590.85,0.33849538]
[1744928190853,0.33782642,592.02,590.85,0.33849538]
[1744928192051,0.29764233,592.01,590.85,0.33849538]
[1744928192252,0.33783783,592.0,590.85,0.33849538]
[1744928193757,0.33783783,592.0,590.86,0.203]
[1744928194358,0.33783783,592.0,590.87,0.154]
[1744928196250,0.33783783,592.0,590.88,0.972]
[1744928196858,0.33783783,592.0,590.89,0.705]
[1744928197961,0.29760735,591.99,590.89,0.705]
[1744928198260,0.33784925,591.98,590.89,0.705]
[1744928198460,0.29760735,591.97,590.89,0.705]
[1744928198658,0.63546716,591.96,590.89,0.705]
[1744928198857,0.63547287,591.95,590.89,0.705]
[1744928199059,0.63547858,591.94,590.89,0.705]
[1744928199361,0.2976065,591.93,590.89,0.705]
[1744928200161,0.33787208,591.94,590.89,0.705]
[1744928200359,0.29760584,591.93,590.89,0.705]
[1744928201864,0.33787208,591.94,590.89,0.705]
[1744928202057,0.2976009,591.93,590.89,0.705]
[1744928202864,0.2976009,591.93,590.9,0.879]
[1744928203263,1.079,591.92,590.9,0.879]
[1744928203560,0.29759161,591.91,590.9,0.879]
[1744928203760,1.079,591.92,590.9,0.879]
[1744928209164,1.079,591.92,590.9,1.739]
[1744928209562,1.079,591.92,590.9,1.893]
[1744928212171,1.079,591.92,590.9,2.096]
[1744928213671,0.29750594,591.91,590.9,2.096]
[1744928215169,1.079,591.92,590.9,2.096]
[1744928215373,0.29751094,591.91,590.9,2.096]
[1744928216878,1.079,591.92,590.9,2.096]
[1744928217077,0.29751083,591.91,590.9,2.096]
[1744928218577,1.079,591.92,590.9,2.096]
[1744928218775,0.29750933,591.91,590.9,2.096]
[1744928219579,0.29750933,591.91,590.9,2.983]
[1744928219972,1.079,591.92,590.9,2.983]
[1744928220380,0.29751547,591.91,590.9,3.627]
[1744928224483,0.29751547,591.93,590.9,3.627]
[1744928227386,0.719,591.92,590.9,3.627]
[1744928227687,0.29751547,591.91,590.9,3.627]
[1744928228186,0.29748613,591.9,590.9,3.627]
[1744928228387,0.29748613,591.91,590.9,3.627]
[1744928228588,0.29748613,591.91,590.9,4.3]
[1744928234691,0.719,591.92,590.9,4.3]
[1744928234891,0.2974755,591.91,590.9,4.3]
[1744928238094,0.719,591.92,590.9,4.3]
[1744928238287,0.297481,591.91,590.9,4.3]
[1744928242799,0.297481,591.93,590.9,4.3]
[1744928243000,0.297481,591.92,590.9,4.3]
[1744928243200,0.297481,591.93,590.9,4.3]
[1744928243402,0.297481,591.92,590.9,4.3]
[1744928243595,0.297481,591.93,590.9,4.3]
[1744928243799,0.297481,591.92,590.9,4.3]
[1744928243999,0.297481,591.93,590.9,4.3]
[1744928245002,0.33788349,591.92,590.9,4.3]
[1744928245199,0.297481,591.91,590.9,4.3]
[1744928246004,0.931,591.9,590.9,4.3]
[1744928246202,0.297481,591.89,590.9,4.3]
[1744928246400,0.931,591.9,590.9,4.3]
[1744928246598,0.29744056,591.89,590.9,4.3]
[1744928248004,0.33790633,591.88,590.9,4.3]
[1744928250505,0.29740748,591.87,590.9,4.3]
[1744928250817,0.33791775,591.86,590.9,4.3]
[1744928255112,0.2974103,591.85,590.9,4.3]
[1744928255313,0.63533376,591.85,590.9,4.3]
[1744928255514,0.2974103,591.84,590.9,4.3]
[1744928258019,0.33792346,591.85,590.9,4.3]
[1744928258213,0.29742952,591.84,590.9,4.3]
[1744928262223,0.33792346,591.85,590.9,4.3]
[1744928262724,0.84,591.84,590.9,4.3]
[1744928268025,0.84,591.84,590.91,0.33846101]
[1744928270528,0.84,591.84,590.92,0.31063166]
[1744928270730,0.84,591.84,590.93,0.33844956]
[1744928270931,0.84,591.84,590.94,0.31063166]
[1744928271125,0.84,591.84,590.95,0.203]
[1744928271328,0.84,591.84,590.96,0.31063166]
[1744928271538,0.84,591.84,590.97,0.33842665]
[1744928271734,0.84,591.84,590.98,0.31063166]
[1744928271930,0.84,591.84,590.98,0.46463166]
[1744928272135,0.84,591.84,590.99,0.31063166]
[1744928272534,0.84,591.84,590.98,0.154]
[1744928272732,0.84,591.84,590.99,0.3384152]
[1744928275832,0.84,591.84,591.0,0.31062301]
[1744928276037,0.84,591.84,591.0,0.64903248]
[1744928276339,0.84,591.84,591.0,0.33840947]
[1744928276532,0.84,591.84,591.01,0.817]
[1744928286647,1.29202224,593.07,591.01,0.817]
[1744928286844,0.33728519,592.97,591.01,0.817]
[1744928287045,0.29757272,592.96,591.01,0.817]
[1744928287248,0.29757272,592.95,591.01,0.817]
[1744928287649,0.29757272,592.94,591.01,0.817]
[1744928287845,0.33731363,592.92,591.01,0.817]
[1744928288048,0.29757272,592.91,591.01,0.817]
[1744928288245,0.3373307,592.89,591.01,0.817]
[1744928288448,0.29757272,592.88,591.01,0.817]
[1744928288653,0.33734777,592.86,591.01,0.817]
[1744928288846,0.29757272,592.85,591.01,0.817]
[1744928289046,0.33736484,592.83,591.01,0.817]
[1744928289251,0.29759371,592.82,591.01,0.817]
[1744928289447,0.33738191,592.8,591.01,0.817]
[1744928289652,0.29759371,592.79,591.01,0.817]
[1744928289846,0.33739899,592.77,591.01,0.817]
[1744928290046,0.29759371,592.76,591.02,0.839]
[1744928290252,0.33741606,592.74,591.02,0.839]
[1744928290654,0.29759371,592.73,591.02,0.839]
[1744928290953,0.33743314,592.71,591.02,0.839]
[1744928291154,0.29759993,592.7,591.02,0.839]
[1744928291348,0.33745022,592.68,591.02,0.839]
[1744928291550,0.29759993,592.67,591.02,0.839]
[1744928291749,0.3374673,592.65,591.02,0.839]
[1744928291954,0.29759993,592.64,591.02,0.839]
[1744928292154,0.33748439,592.62,591.02,0.839]
[1744928292448,0.29759993,592.61,591.02,0.839]
[1744928292655,0.33750147,592.59,591.02,0.839]
[1744928292853,0.29759993,592.58,591.02,0.839]
[1744928293054,0.33751856,592.56,591.02,1.042]
[1744928293251,0.29759993,592.55,591.02,1.042]
[1744928293451,0.33753565,592.53,591.02,1.042]
[1744928293648,0.29759993,592.52,591.02,1.042]
[1744928293853,0.33755274,592.5,591.02,1.042]
[1744928294253,0.29763244,592.49,591.02,1.042]
[1744928294449,0.33756983,592.47,591.02,1.042]
[1744928294652,0.29763244,592.46,591.02,1.042]
[1744928294853,0.33758692,592.44,591.02,1.042]
[1744928295050,0.29763244,592.43,591.02,1.042]
[1744928295256,0.33760402,592.41,591.02,1.042]
[1744928295457,0.29763244,592.4,591.02,1.042]
[1744928295654,0.33762112,592.38,591.02,1.042]
[1744928295855,0.29763244,592.37,591.02,1.042]
[1744928296154,0.33763252,592.36,591.02,1.042]
[1744928296353,0.29763244,592.35,591.02,1.042]
[1744928296555,0.33764392,592.34,591.02,1.042]
[1744928296755,0.29763244,592.33,591.02,1.042]
[1744928296956,0.33765532,592.32,591.02,1.042]
[1744928297155,0.29763244,592.31,591.02,1.042]
[1744928297454,0.33766672,592.3,591.02,1.042]
[1744928297656,0.29763244,592.29,591.02,1.042]
[1744928297853,0.33767812,592.28,591.02,1.042]
[1744928298054,0.29763244,592.27,591.02,1.042]
[1744928298255,0.33768952,592.26,591.02,1.042]
[1744928298557,0.29763244,592.25,591.02,1.715]
[1744928299059,0.33770093,592.24,591.02,1.715]
[1744928299252,0.29763244,592.23,591.02,1.715]
[1744928299453,0.33771233,592.22,591.02,1.715]
[1744928299656,0.29763244,592.21,591.02,1.715]
[1744928299853,0.33772374,592.2,591.02,1.715]
[1744928300057,0.29763244,592.19,591.02,1.715]
[1744928300257,0.33773514,592.18,591.02,1.715]
[1744928300758,0.2976774,592.17,591.02,1.715]
[1744928303259,0.2976774,592.17,591.02,2.691]
[1744928303661,0.2976774,592.17,591.02,2.845]
[1744928303857,0.969,592.16,591.02,2.845]
[1744928304058,0.2976774,592.15,591.02,2.845]
[1744928305562,0.29769567,592.14,591.02,2.845]
[1744928305861,0.29769567,592.13,591.02,2.845]
[1744928306056,0.29769567,592.15,591.02,2.845]
[1744928308761,0.969,592.16,591.02,2.845]
[1744928308964,0.29768993,592.15,591.02,2.845]
[1744928309162,0.33775796,592.14,591.02,2.845]
[1744928309462,0.29768993,592.13,591.02,2.845]
[1744928309663,0.33776937,592.12,591.02,2.845]
[1744928309862,0.29768993,592.11,591.02,2.845]
[1744928310060,0.33778078,592.1,591.02,2.845]
[1744928310257,0.29768993,592.09,591.02,2.845]
[1744928311965,0.33778078,592.1,591.02,2.845]
[1744928312165,0.29766555,592.09,591.02,2.845]
[1744928318567,0.33778078,592.1,591.02,2.845]
[1744928318768,0.2976529,592.09,591.02,2.845]
[1744928322370,0.33778078,592.1,591.02,2.845]
[1744928323869,0.33778078,592.1,591.02,3.768]
[1744928326472,0.33778078,592.1,591.02,4.833]
[1744928328869,0.29758775,592.09,591.02,4.833]
[1744928329074,0.33779219,592.08,591.02,4.833]
[1744928329374,0.29755425,592.07,591.02,4.833]
[1744928329574,0.3378036,592.06,591.02,4.833]
[1744928329773,0.29755425,592.05,591.02,4.833]
[1744928329970,0.33781501,592.04,591.02,4.833]
[1744928330372,0.29754822,592.03,591.02,4.833]
[1744928330571,0.33782642,592.02,591.02,4.833]
[1744928330775,0.29754822,592.01,591.02,4.833]
[1744928330969,0.33783783,592.0,591.02,4.833]
[1744928331170,0.29754822,591.99,591.02,4.833]
[1744928331470,0.33784925,591.98,591.02,4.833]
[1744928331669,0.29754822,591.97,591.02,4.833]
[1744928331871,0.33786066,591.96,591.02,4.833]
[1744928332071,0.29754163,591.95,591.02,4.833]
[1744928332271,0.33787208,591.94,591.02,4.833]
[1744928332470,0.29754163,591.93,591.02,4.833]
[1744928332669,0.33788349,591.92,591.02,4.833]
[1744928332872,0.29754163,591.91,591.02,4.833]
[1744928333074,1.13354163,591.91,591.02,4.833]
[1744928333273,0.836,591.91,591.02,4.833]
[1744928336680,0.836,591.91,591.03,0.33839229]
[1744928339284,0.836,591.91,591.04,0.3105472]
[1744928339583,0.836,591.91,591.05,0.33838084]
[1744928339782,0.836,591.91,591.06,0.3105472]
[1744928339984,0.836,591.91,591.07,0.33836939]
[1744928340182,0.836,591.91,591.08,0.3105472]
[1744928340379,0.836,591.91,591.09,0.33835794]
[1744928340579,0.836,591.91,591.1,0.3105472]
[1744928340778,0.836,591.91,591.11,0.154]
[1744928340978,0.836,591.91,591.12,0.33834077]
[1744928341485,0.836,591.91,591.13,0.31043858]
[1744928341683,0.836,591.91,591.14,0.33832932]
[1744928341884,0.836,591.91,591.15,0.31043858]
[1744928342179,0.836,591.91,591.16,0.33831788]
[1744928342382,0.836,591.91,591.17,0.31043858]
[1744928342584,0.836,591.91,591.18,0.33830643]
[1744928342783,0.836,591.91,591.19,0.31043858]
[1744928342984,0.836,591.91,591.2,0.33829499]
[1744928343183,0.836,591.91,591.21,0.31043858]
[1744928343685,0.836,591.91,591.22,0.33828354]
[1744928343883,0.836,591.91,591.23,0.31043858]
[1744928344180,0.836,591.91,591.24,0.3382721]
[1744928344483,0.836,591.91,591.25,0.31043858]
[1744928344685,0.836,591.91,591.26,0.33826066]
[1744928344877,0.836,591.91,591.27,0.31043858]
[1744928345077,0.836,591.91,591.28,0.33824922]
[1744928345283,0.836,591.91,591.29,0.31043858]
[1744928345485,0.836,591.91,591.3,0.33823778]
[1744928345685,0.836,591.91,591.31,0.31043858]
[1744928345885,0.836,591.91,591.32,0.33822634]
[1744928346380,0.836,591.91,591.33,0.31028679]
[1744928346587,0.836,591.91,591.34,0.3382149]
[1744928346785,0.836,591.91,591.35,0.31028679]
[1744928346989,0.836,591.91,591.36,0.33820346]
[1744928347286,0.836,591.91,591.37,0.31028679]
[1744928347787,0.836,591.91,591.38,0.33819202]
[1744928348887,0.836,591.91,591.39,0.31034517]
[1744928349088,0.82830154,591.91,591.4,0.33818058]